[Event "Djerba Festival Blitz 2025"]
[Site "Djerba"]
[Date "2025.02.21"]
[Round "7.19"]
[White "Bensadi, Lotfi"]
[Black "Rekik Ismail"]
[Result "1-0"]
[ECO "B07"]
[WhiteElo "1971"]
[BlackElo "2006"]
[PlyCount "141"]
[EventDate "2025.02.15"]
[EventType "swiss"]
[EventCountry "TUN"]
[TimeControl "180+3"]

1. e4 {[%emt 0:00:03]} d6 {[%emt 0:00:03]} 2. d4 {[%emt 0:00:05]} Nf6 {[%emt 0:00:02]} 3. Nc3 {[%emt 0:00:02]} g6 {[%emt 0:00:02]} 4. Be3 {[%emt 0:00:02]} c6 {[%emt 0:00:01]} 5. f3 {[%emt 0:00:03]} Bg7 {[%emt 0:00:02]} 6. Qd2 {[%emt 0:00:01]} h5 {[%emt 0:00:03]} 7. h4 {[%emt 0:00:18]} Qa5 {[%emt 0:00:05]} 8. Nh3 {[%emt 0:00:08]} b5 {[%emt 0:00:11]} 9. Bd3 {[%emt 0:00:07]} Ba6 {[%emt 0:00:04]} 10. Ne2 {[%emt 0:00:26]} Qxd2+ {[%emt 0:00:14]} 11. Bxd2 {[%emt 0:00:05]} Bb7 {[%emt 0:00:07]} 12. Nhf4 {[%emt 0:00:05]} e5 {[%emt 0:00:10]} 13. dxe5 {[%emt 0:00:07]} dxe5 {[%emt 0:00:01]} 14. Nh3 {[%emt 0:00:04]} Nbd7 {[%emt 0:00:04]} 15. a4 {[%emt 0:00:05]} a6 {[%emt 0:00:01]} 16. axb5 {[%emt 0:00:03]} cxb5 {[%emt 0:00:02]} 17. Be3 {[%emt 0:00:10]} O-O {[%emt 0:00:10]} 18. Nf2 {[%emt 0:00:10]} Rfc8 {[%emt 0:00:08]} 19. g4 {[%emt 0:00:06]} Nc5 {[%emt 0:00:03]} 20. g5 {[%emt 0:00:14]} Ne8 {[%emt 0:00:12]} 21. Nc3 {[%emt 0:00:09]} Nxd3+ {[%emt 0:00:05]} 22. cxd3 {[%emt 0:00:05]} b4 {[%emt 0:00:15]} 23. Na4 {[%emt 0:00:08]} Rc2 {[%emt 0:00:11]} 24. Nb6 {[%emt 0:00:22]} Rd8 {[%emt 0:00:06]} 25. Nc4 {[%emt 0:00:02]} Nd6 {[%emt 0:00:14]} 26. Rc1 {[%emt 0:00:40]} b3 {[%emt 0:00:24]} 27. Rxc2 {[%emt 0:00:08]} bxc2 {[%emt 0:00:02]} 28. Nxd6 {[%emt 0:00:03]} Rxd6 {[%emt 0:00:02]} 29. Kd2 {[%emt 0:00:02]} Rc6 {[%emt 0:00:16]} 30. Rc1 {[%emt 0:00:02]} Bf8 {[%emt 0:00:01]} 31. Rxc2 {[%emt 0:00:03]} Bb4+ {[%emt 0:00:02]} 32. Kd1 {[%emt 0:00:02]} Kf8 {[%emt 0:00:10]} 33. Rxc6 {[%emt 0:00:03]} Bxc6 {[%emt 0:00:01]} 34. Bd2 {[%emt 0:00:15]} Bc5 {[%emt 0:00:02]} 35. Ke2 {[%emt 0:00:02]} Bb5 {[%emt 0:00:03]} 36. Be1 {[%emt 0:00:04]} Ke7 {[%emt 0:00:07]} 37. Nd1 {[%emt 0:00:02]} Bd4 {[%emt 0:00:02]} 38. Nc3 {[%emt 0:00:02]} Bc6 {[%emt 0:00:07]} 39. Bf2 {[%emt 0:00:02]} Bxf2 {[%emt 0:00:06]} 40. Kxf2 {[%emt 0:00:02]} Kd6 {[%emt 0:00:02]} 41. b4 {[%emt 0:00:07]} Ke6 {[%emt 0:00:21]} 42. Ke3 {[%emt 0:00:02]} f6 {[%emt 0:00:01]} 43. f4 {[%emt 0:00:04]} fxg5 {[%emt 0:00:17]} 44. fxg5 {[%emt 0:00:03]} Kd6 {[%emt 0:00:11]} 45. d4 {[%emt 0:00:04]} exd4+ {[%emt 0:00:03]} 46. Kxd4 {[%emt 0:00:02]} Bd7 {[%emt 0:00:06]} 47. Nd5 {[%emt 0:00:04]} Be6 {[%emt 0:00:06]} 48. Nf4 {[%emt 0:00:06]} Bf7 {[%emt 0:00:02]} 49. e5+ {[%emt 0:00:02]} Kc6 {[%emt 0:00:03]} 50. e6 {[%emt 0:00:03]} Be8 {[%emt 0:00:01]} 51. Ke5 {[%emt 0:00:09]} Kb5 {[%emt 0:00:02]} 52. Kf6 {[%emt 0:00:02]} Kxb4 {[%emt 0:00:03]} 53. Nxg6 {[%emt 0:00:04]} a5 {[%emt 0:00:02]} 54. Ne5 {[%emt 0:00:05]} Bb5 {[%emt 0:00:06]} 55. g6 {[%emt 0:00:03]} a4 {[%emt 0:00:02]} 56. g7 {[%emt 0:00:02]} a3 {[%emt 0:00:02]} 57. g8=Q {[%emt 0:00:10]} a2 {[%emt 0:00:02]} 58. Qf8+ {[%emt 0:00:00]} Kb3 {[%emt 0:00:02]} 59. Qa8 {[%emt 0:00:02]} Kb2 {[%emt 0:00:04]} 60. Qb7 {[%emt 0:00:03]} a1=Q {[%emt 0:00:24]} 61. Qxb5+ {[%emt 0:00:02]} Kc2 {[%emt 0:00:00]} 62. Qe2+ {[%emt 0:00:02]} Kb3 {[%emt 0:00:00]} 63. Qd3+ {[%emt 0:00:03]} Kb4 {[%emt 0:00:00]} 64. Qc4+ {[%emt 0:00:02]} Ka5 {[%emt 0:00:00]} 65. Qc5+ {[%emt 0:00:02]} Ka6 {[%emt 0:00:00]} 66. Ke7 {[%emt 0:00:02]} Kb7 {[%emt 0:00:00]} 67. Kd6 {[%emt 0:00:07]} Kb8 {[%emt 0:00:03]} 68. Nd7+ {[%emt 0:00:05]} Ka8 {[%emt 0:00:04]} 69. Qc6+ {[%emt 0:00:02]} Ka7 {[%emt 0:00:03]} 70. Qb6+ {[%emt 0:00:02]} Ka8 71. Qb8# {[%emt 0:00:03]} 1-0

[Event "Djerba Festival Blitz 2025"]
[Site "Djerba"]
[Date "2025.02.21"]
[Round "7.20"]
[White "Gemelli, Romain"]
[Black "Mendili, Jahed"]
[Result "1-0"]
[ECO "D30"]
[WhiteElo "2203"]
[BlackElo "1771"]
[PlyCount "67"]
[EventDate "2025.02.15"]
[EventType "swiss"]
[EventCountry "TUN"]
[TimeControl "180+3"]

1. d4 {[%emt 0:00:05]} Nf6 {[%emt 0:00:03]} 2. c4 {[%emt 0:00:02]} e6 {[%emt 0:00:02]} 3. Nf3 {[%emt 0:00:03]} d5 {[%emt 0:00:04]} 4. Bg5 {[%emt 0:00:03]} Be7 {[%emt 0:00:08]} 5. e3 {[%emt 0:00:03]} Nbd7 {[%emt 0:00:06]} 6. Qc2 {[%emt 0:00:02]} c5 {[%emt 0:00:18]} 7. Nc3 {[%emt 0:00:15]} b6 {[%emt 0:00:13]} 8. Rd1 {[%emt 0:00:03]} Bb7 {[%emt 0:00:03]} 9. dxc5 {[%emt 0:00:12]} bxc5 {[%emt 0:00:09]} 10. Be2 {[%emt 0:00:09]} O-O {[%emt 0:00:04]} 11. O-O {[%emt 0:00:03]} h6 {[%emt 0:00:19]} 12. Bh4 {[%emt 0:00:03]} Rc8 {[%emt 0:00:09]} 13. Bg3 {[%emt 0:00:07]} Qb6 {[%emt 0:00:14]} 14. Ne5 {[%emt 0:00:12]} Nxe5 {[%emt 0:00:32]} 15. Bxe5 {[%emt 0:00:04]} Rfd8 {[%emt 0:00:03]} 16. Bf3 {[%emt 0:00:12]} Nd7 {[%emt 0:00:49]} 17. Bg3 {[%emt 0:00:04]} Nf6 {[%emt 0:00:02]} 18. b3 {[%emt 0:00:22]} d4 {[%emt 0:00:10]} 19. Bxb7 {[%emt 0:00:04]} Qxb7 {[%emt 0:00:03]} 20. exd4 {[%emt 0:00:04]} cxd4 {[%emt 0:00:02]} 21. Ne2 {[%emt 0:00:21]} Bc5 {[%emt 0:00:11]} 22. Rd3 {[%emt 0:00:17]} a5 {[%emt 0:00:06]} 23. Rfd1 {[%emt 0:00:05]} Qb6 {[%emt 0:00:09]} 24. Be5 {[%emt 0:00:05]} Ng4 {[%emt 0:00:06]} 25. Bxd4 {[%emt 0:00:21]} Bxd4 {[%emt 0:00:04]} 26. Nxd4 {[%emt 0:00:02]} Ne5 {[%emt 0:00:02]} 27. R3d2 {[%emt 0:00:12]} Rd7 {[%emt 0:00:06]} 28. Qe4 {[%emt 0:00:12]} Ng6 {[%emt 0:00:05]} 29. Nb5 {[%emt 0:00:15]} Rxd2 {[%emt 0:00:02]} 30. Rxd2 {[%emt 0:00:02]} Qc5 {[%emt 0:00:03]} 31. g3 {[%emt 0:00:12]} Rf8 {[%emt 0:00:05]} 32. Qd4 {[%emt 0:00:05]} Qf5 {[%emt 0:00:02]} 33. Qd3 {[%emt 0:00:21]} Ne5 {[%emt 0:00:05]} 34. Qxf5 {[%emt 0:00:00]} 1-0

[Event "Djerba Festival Blitz 2025"]
[Site "Djerba"]
[Date "2025.02.21"]
[Round "7.23"]
[White "Kolodner, Garry"]
[Black "Zenaidi, Sadok"]
[Result "0-1"]
[ECO "D38"]
[WhiteElo "1697"]
[BlackElo "1872"]
[PlyCount "80"]
[EventDate "2025.02.15"]
[EventType "swiss"]
[EventCountry "TUN"]
[TimeControl "180+3"]

1. d4 {[%emt 0:00:04]} Nf6 {[%emt 0:00:02]} 2. c4 {[%emt 0:00:02]} e6 {[%emt 0:00:02]} 3. Nc3 {[%emt 0:00:03]} Bb4 {[%emt 0:00:02]} 4. Bg5 {[%emt 0:00:06]} d5 {[%emt 0:00:11]} 5. Nf3 {[%emt 0:00:05]} O-O {[%emt 0:00:06]} 6. e3 {[%emt 0:00:03]} Nbd7 {[%emt 0:00:06]} 7. Bd3 {[%emt 0:00:03]} c6 {[%emt 0:00:06]} 8. O-O {[%emt 0:00:07]} Qa5 {[%emt 0:00:02]} 9. Bxf6 {[%emt 0:00:29]} Nxf6 {[%emt 0:00:02]} 10. Qb3 {[%emt 0:00:08]} Nd7 {[%emt 0:00:24]} 11. a3 {[%emt 0:00:06]} Bd6 {[%emt 0:00:04]} 12. c5 {[%emt 0:00:06]} Bb8 {[%emt 0:00:02]} 13. Qc2 {[%emt 0:00:03]} h6 {[%emt 0:00:03]} 14. b4 {[%emt 0:00:03]} Qc7 {[%emt 0:00:05]} 15. e4 {[%emt 0:00:06]} dxe4 {[%emt 0:00:27]} 16. Nxe4 {[%emt 0:00:05]} Qd8 {[%emt 0:00:06]} 17. a4 {[%emt 0:00:06]} Nf6 {[%emt 0:00:03]} 18. b5 {[%emt 0:00:08]} Qe7 {[%emt 0:00:40]} 19. Ne5 {[%emt 0:00:25]} Bd7 {[%emt 0:00:11]} 20. Nxf6+ {[%emt 0:00:22]} gxf6 {[%emt 0:00:04]} 21. Nxd7 {[%emt 0:00:09]} Qxd7 {[%emt 0:00:02]} 22. Rad1 {[%emt 0:00:13]} f5 {[%emt 0:00:09]} 23. h3 {[%emt 0:00:35]} Kh8 {[%emt 0:00:07]} 24. Qd2 {[%emt 0:00:10]} Kh7 {[%emt 0:00:23]} 25. g4 {[%emt 0:00:07]} Rg8 {[%emt 0:00:04]} 26. Kh1 {[%emt 0:00:05]} Qc7 {[%emt 0:00:08]} 27. f4 {[%emt 0:00:04]} Qd7 {[%emt 0:00:16]} 28. Qc2 {[%emt 0:00:04]} Qd5+ {[%emt 0:00:11]} 29. Kh2 {[%emt 0:00:02]} Kh8 {[%emt 0:00:07]} 30. Bc4 {[%emt 0:00:11]} Qd7 {[%emt 0:00:04]} 31. gxf5 {[%emt 0:00:05]} exf5 {[%emt 0:00:04]} 32. Rd2 {[%emt 0:00:04]} Bc7 {[%emt 0:00:06]} 33. d5 {[%emt 0:00:03]} Ba5 {[%emt 0:00:04]} 34. Rg2 {[%emt 0:00:07]} cxd5 {[%emt 0:00:03]} 35. Rxg8+ {[%emt 0:00:05]} Rxg8 {[%emt 0:00:01]} 36. Rd1 {[%emt 0:00:03]} Bc7 {[%emt 0:00:06]} 37. Qc3+ {[%emt 0:00:04]} Kh7 {[%emt 0:00:05]} 38. Rxd5 {[%emt 0:00:03]} Bxf4+ {[%emt 0:00:03]} 39. Kh1 {[%emt 0:00:02]} Qe7 {[%emt 0:00:04]} 40. Qc1 {[%emt 0:00:04]} Bxc1 {[%emt 0:00:02]} 0-1

[Event "Djerba Festival Blitz 2025"]
[Site "Djerba"]
[Date "2025.02.21"]
[Round "7.25"]
[White "Guinet, Stephane"]
[Black "Alonso Garuti, Luis Eugenio"]
[Result "0-1"]
[ECO "B01"]
[WhiteElo "1617"]
[BlackElo "1845"]
[PlyCount "76"]
[EventDate "2025.02.15"]
[EventType "swiss"]
[EventCountry "TUN"]
[TimeControl "180+3"]

1. e4 {[%emt 0:03:06]} d5 {[%emt 0:01:00]} 2. exd5 {[%emt 0:00:00]} Nf6 {[%emt 0:00:02]} 3. Nf3 {[%emt 0:00:00]} Nxd5 {[%emt 0:00:03]} 4. Bc4 {[%emt 0:00:00]} Nf6 {[%emt 0:00:03]} 5. O-O {[%emt 0:00:00]} e6 {[%emt 0:00:01]} 6. d3 {[%emt 0:00:00]} Bd6 {[%emt 0:00:08]} 7. Bg5 {[%emt 0:00:00]} h6 {[%emt 0:00:05]} 8. Bh4 {[%emt 0:00:00]} O-O {[%emt 0:00:05]} 9. Nbd2 {[%emt 0:00:00]} Be7 {[%emt 0:00:04]} 10. c3 {[%emt 0:00:00]} Nbd7 {[%emt 0:00:03]} 11. d4 {[%emt 0:00:00]} Nb6 {[%emt 0:00:03]} 12. Bb3 {[%emt 0:00:00]} Nfd5 {[%emt 0:00:10]} 13. Bxe7 {[%emt 0:00:00]} Qxe7 {[%emt 0:00:02]} 14. a4 {[%emt 0:00:00]} Nd7 {[%emt 0:00:02]} 15. a5 {[%emt 0:00:00]} N7f6 {[%emt 0:00:04]} 16. Ne5 {[%emt 0:00:00]} b6 {[%emt 0:00:08]} 17. Nc6 {[%emt 0:00:00]} Qe8 {[%emt 0:00:02]} 18. Ba4 {[%emt 0:00:00]} Bd7 {[%emt 0:00:03]} 19. Nf3 {[%emt 0:00:00]} Bxc6 {[%emt 0:00:02]} 20. Bxc6 {[%emt 0:00:00]} Qxc6 {[%emt 0:00:03]} 21. Ne5 {[%emt 0:00:00]} Qe8 {[%emt 0:00:01]} 22. Qc2 {[%emt 0:00:00]} Nd7 {[%emt 0:00:03]} 23. Nc6 {[%emt 0:00:00]} N7f6 {[%emt 0:00:03]} 24. Ne5 {[%emt 0:00:00]} Nd7 {[%emt 0:00:03]} 25. Nc6 {[%emt 0:00:00]} Nb8 {[%emt 0:00:06]} 26. Ne5 {[%emt 0:00:00]} Nc6 {[%emt 0:00:07]} 27. Nf3 {[%emt 0:00:00]} Nce7 {[%emt 0:00:06]} 28. Ne5 {[%emt 0:00:00]} Ng6 {[%emt 0:00:02]} 29. Nf3 {[%emt 0:00:00]} Rc8 {[%emt 0:00:03]} 30. b4 {[%emt 0:00:00]} c5 {[%emt 0:00:03]} 31. dxc5 {[%emt 0:00:00]} bxc5 {[%emt 0:00:02]} 32. Qd3 {[%emt 0:00:00]} cxb4 {[%emt 0:00:02]} 33. cxb4 {[%emt 0:00:00]} Nxb4 {[%emt 0:00:03]} 34. Qe4 {[%emt 0:00:09]} Nd5 {[%emt 0:00:07]} 35. Qd4 {[%emt 0:00:07]} Qe7 {[%emt 0:00:14]} 36. Rab1 {[%emt 0:00:03]} Qc5 {[%emt 0:00:02]} 37. Qa4 {[%emt 0:01:29]} Nc3 {[%emt 0:00:05]} 38. Rfc1 {[%emt 0:00:00]} Nxa4 {[%emt 0:01:32]} 0-1

[Event "Djerba Festival Blitz 2025"]
[Site "Djerba"]
[Date "2025.02.21"]
[Round "7.26"]
[White "El Kadi, Ismael"]
[Black "Farouz, Paul"]
[Result "1-0"]
[ECO "B13"]
[WhiteElo "1852"]
[BlackElo "1680"]
[PlyCount "95"]
[EventDate "2025.02.15"]
[EventType "swiss"]
[EventCountry "TUN"]
[TimeControl "180+3"]

1. e4 {[%emt 0:00:04]} c6 {[%emt 0:00:02]} 2. d4 {[%emt 0:00:03]} d5 {[%emt 0:00:02]} 3. exd5 {[%emt 0:00:03]} cxd5 {[%emt 0:00:02]} 4. Bd3 {[%emt 0:00:04]} Nf6 {[%emt 0:00:04]} 5. Bf4 {[%emt 0:00:06]} Nc6 {[%emt 0:00:03]} 6. c3 {[%emt 0:00:02]} Bg4 {[%emt 0:00:12]} 7. Qb3 {[%emt 0:00:02]} Na5 {[%emt 0:00:13]} 8. Qa4+ {[%emt 0:00:21]} Nc6 {[%emt 0:00:03]} 9. Nd2 {[%emt 0:00:06]} Bd7 {[%emt 0:00:16]} 10. Qc2 {[%emt 0:00:08]} Rc8 {[%emt 0:00:06]} 11. Ngf3 {[%emt 0:00:06]} Nb4 {[%emt 0:00:04]} 12. Qb1 {[%emt 0:00:03]} Nxd3+ {[%emt 0:00:03]} 13. Qxd3 {[%emt 0:00:03]} a6 {[%emt 0:00:04]} 14. Ne5 {[%emt 0:00:03]} Bb5 {[%emt 0:00:05]} 15. Qf3 {[%emt 0:00:24]} e6 {[%emt 0:00:05]} 16. Nd3 {[%emt 0:00:03]} Bd6 {[%emt 0:00:06]} 17. Bxd6 {[%emt 0:00:09]} Qxd6 {[%emt 0:00:03]} 18. O-O {[%emt 0:00:05]} O-O {[%emt 0:00:05]} 19. Rfe1 {[%emt 0:00:08]} Rfe8 {[%emt 0:02:22]} 20. Ne5 {[%emt 0:00:07]} Re7 {[%emt 0:00:00]} 21. a4 {[%emt 0:00:02]} Be8 {[%emt 0:00:00]} 22. Qg3 {[%emt 0:00:16]} Nh5 {[%emt 0:00:00]} 23. Qh4 {[%emt 0:00:13]} f6 {[%emt 0:00:00]} 24. Ng4 {[%emt 0:00:11]} Bg6 {[%emt 0:00:00]} 25. Re3 {[%emt 0:00:04]} Qf4 {[%emt 0:00:00]} 26. Qh3 {[%emt 0:00:26]} Rf8 {[%emt 0:00:00]} 27. Nb3 {[%emt 0:00:06]} b6 {[%emt 0:00:00]} 28. a5 {[%emt 0:00:03]} e5 {[%emt 0:00:00]} 29. axb6 {[%emt 0:00:08]} e4 {[%emt 0:00:00]} 30. Nc5 {[%emt 0:00:36]} f5 {[%emt 0:00:00]} 31. Ne5 {[%emt 0:00:02]} Rxe5 {[%emt 0:00:00]} 32. dxe5 {[%emt 0:00:04]} Qxe5 {[%emt 0:00:05]} 33. Nd7 {[%emt 0:00:02]} Nf4 {[%emt 0:00:07]} 34. Nxe5 {[%emt 0:00:06]} Nxh3+ {[%emt 0:00:03]} 35. gxh3 {[%emt 0:00:02]} f4 {[%emt 0:00:03]} 36. Nxg6 {[%emt 0:00:03]} hxg6 {[%emt 0:00:05]} 37. Re2 {[%emt 0:00:08]} f3 {[%emt 0:00:14]} 38. Re3 {[%emt 0:00:03]} Rf6 {[%emt 0:00:02]} 39. Rxa6 {[%emt 0:00:02]} g5 {[%emt 0:00:01]} 40. b7 {[%emt 0:00:02]} Rxa6 {[%emt 0:00:07]} 41. b8=Q+ {[%emt 0:00:04]} Kh7 {[%emt 0:00:01]} 42. Re1 {[%emt 0:00:03]} Rg6 {[%emt 0:00:07]} 43. Qe5 {[%emt 0:00:03]} g4 {[%emt 0:00:03]} 44. hxg4 {[%emt 0:00:03]} Kh6 {[%emt 0:00:03]} 45. h3 {[%emt 0:00:03]} e3 {[%emt 0:00:05]} 46. fxe3 {[%emt 0:00:03]} Rf6 {[%emt 0:00:02]} 47. Kf2 {[%emt 0:00:03]} d4 {[%emt 0:00:05]} 48. Qh5# {[%emt 0:00:00]} 1-0

[Event "Djerba Festival Blitz 2025"]
[Site "Djerba"]
[Date "2025.02.21"]
[Round "7.27"]
[White "Skhiri Youssef"]
[Black "Guinet, Andy"]
[Result "1-0"]
[ECO "A42"]
[WhiteElo "1808"]
[BlackElo "1665"]
[PlyCount "38"]
[EventDate "2025.02.15"]
[EventType "swiss"]
[EventCountry "TUN"]
[TimeControl "180+3"]

1. c4 {[%emt 0:03:06]} g6 {[%emt 0:03:06]} 2. Nc3 {[%emt 0:00:03]} Bg7 {[%emt 0:00:03]} 3. e4 d6 4. d4 {[%emt 0:00:06]} f5 {[%emt 0:00:06]} 5. exf5 {[%emt 0:00:03]} Bxf5 6. Be2 Nc6 {[%emt 0:00:06]} 7. d5 {[%emt 0:00:06]} Ne5 8. Nf3 {[%emt 0:00:03]} Nxf3+ {[%emt 0:00:06]} 9. Bxf3 {[%emt 0:00:03]} Nf6 {[%emt 0:00:03]} 10. O-O {[%emt 0:00:03]} O-O {[%emt 0:00:03]} 11. Re1 Qd7 {[%emt 0:00:03]} 12. h3 {[%emt 0:00:06]} Rae8 {[%emt 0:00:03]} 13. g4 {[%emt 0:00:03]} Nxd5 {[%emt 0:00:03]} 14. Bxd5+ {[%emt 0:00:03]} e6 {[%emt 0:00:03]} 15. Bg2 {[%emt 0:00:03]} e5 {[%emt 0:00:03]} 16. gxf5 {[%emt 0:00:03]} Qxf5 {[%emt 0:00:03]} 17. Be3 {[%emt 0:00:03]} b6 {[%emt 0:00:03]} 18. Qg4 {[%emt 0:00:03]} Qf7 {[%emt 0:00:03]} 19. Bd5 {[%emt 0:00:03]} h5 {[%emt 0:00:03]} 1-0

[Event "Djerba Festival Blitz 2025"]
[Site "Djerba"]
[Date "2025.02.21"]
[Round "7.28"]
[White "Dauvois, Theo"]
[Black "Alouani, Ahmed"]
[Result "1-0"]
[ECO "D10"]
[WhiteElo "1663"]
[BlackElo "1617"]
[PlyCount "73"]
[EventDate "2025.02.15"]
[EventType "swiss"]
[EventCountry "TUN"]
[TimeControl "180+3"]

1. d4 {[%emt 0:00:03]} c6 {[%emt 0:00:04]} 2. c4 {[%emt 0:00:02]} d5 {[%emt 0:00:03]} 3. Nc3 {[%emt 0:00:02]} Bf5 {[%emt 0:00:06]} 4. cxd5 {[%emt 0:00:04]} cxd5 {[%emt 0:00:27]} 5. Qb3 {[%emt 0:00:02]} e6 {[%emt 0:00:16]} 6. Qxb7 {[%emt 0:00:12]} Nd7 {[%emt 0:00:01]} 7. Bf4 {[%emt 0:00:15]} a6 {[%emt 0:00:28]} 8. e3 {[%emt 0:00:03]} Ngf6 {[%emt 0:00:20]} 9. Bxa6 {[%emt 0:00:03]} Be7 {[%emt 0:00:08]} 10. Bc7 {[%emt 0:00:19]} Qc8 {[%emt 0:00:52]} 11. Qxc8+ {[%emt 0:00:04]} Rxc8 {[%emt 0:00:02]} 12. Bxc8 {[%emt 0:00:02]} O-O {[%emt 0:00:03]} 13. Bxd7 {[%emt 0:00:07]} Nxd7 {[%emt 0:00:03]} 14. Nf3 {[%emt 0:00:04]} Rc8 {[%emt 0:00:04]} 15. Bg3 {[%emt 0:00:07]} Bb4 {[%emt 0:00:04]} 16. Rc1 {[%emt 0:00:04]} Nb6 {[%emt 0:00:06]} 17. Nd2 {[%emt 0:00:13]} Bd3 {[%emt 0:00:08]} 18. a3 {[%emt 0:00:05]} Be7 {[%emt 0:00:10]} 19. Ne2 {[%emt 0:00:12]} Nc4 {[%emt 0:00:17]} 20. Nxc4 {[%emt 0:00:03]} dxc4 {[%emt 0:00:05]} 21. Nf4 {[%emt 0:00:08]} Bf5 {[%emt 0:00:05]} 22. O-O {[%emt 0:00:03]} g5 {[%emt 0:00:10]} 23. Ne2 {[%emt 0:00:07]} Rd8 {[%emt 0:00:04]} 24. Rfe1 {[%emt 0:00:10]} Rc8 {[%emt 0:00:03]} 25. Nc3 {[%emt 0:00:06]} h5 {[%emt 0:00:03]} 26. e4 {[%emt 0:00:05]} Bg6 {[%emt 0:00:03]} 27. h3 {[%emt 0:00:06]} h4 {[%emt 0:00:03]} 28. Bh2 {[%emt 0:00:02]} Bf6 {[%emt 0:00:03]} 29. d5 {[%emt 0:00:05]} exd5 {[%emt 0:00:03]} 30. exd5 {[%emt 0:00:06]} Rd8 {[%emt 0:00:03]} 31. d6 {[%emt 0:00:06]} Bg7 {[%emt 0:00:04]} 32. Ne4 {[%emt 0:00:05]} Bxb2 {[%emt 0:00:04]} 33. Rxc4 {[%emt 0:00:06]} Bxe4 {[%emt 0:00:04]} 34. Rcxe4 {[%emt 0:00:05]} Bxa3 {[%emt 0:00:02]} 35. Re8+ {[%emt 0:00:02]} Rxe8 {[%emt 0:00:03]} 36. Rxe8+ {[%emt 0:00:03]} Kg7 {[%emt 0:00:01]} 37. d7 {[%emt 0:00:04]} 1-0

[Event "Djerba Festival Blitz 2025"]
[Site "Djerba"]
[Date "2025.02.21"]
[Round "7.29"]
[White "El Gazzar, Ahmed"]
[Black "Hafsa, Yessine"]
[Result "0-1"]
[ECO "C25"]
[WhiteElo "1667"]
[BlackElo "1503"]
[PlyCount "90"]
[EventDate "2025.02.15"]
[EventType "swiss"]
[EventCountry "TUN"]
[TimeControl "180+3"]

1. e4 {[%emt 0:00:04]} e5 {[%emt 0:03:06]} 2. Nc3 {[%emt 0:00:03]} Nc6 {[%emt 0:00:00]} 3. f4 {[%emt 0:00:02]} exf4 {[%emt 0:00:00]} 4. Nf3 {[%emt 0:00:03]} Bb4 {[%emt 0:00:00]} 5. d4 {[%emt 0:00:05]} d5 {[%emt 0:00:00]} 6. exd5 {[%emt 0:00:10]} Qxd5 {[%emt 0:00:00]} 7. Bd2 {[%emt 0:00:10]} Bxc3 {[%emt 0:00:00]} 8. Bxc3 {[%emt 0:00:04]} Nf6 {[%emt 0:00:00]} 9. Qd2 {[%emt 0:00:32]} Qe4+ {[%emt 0:00:00]} 10. Be2 {[%emt 0:00:07]} Ng4 {[%emt 0:00:00]} 11. h3 {[%emt 0:00:19]} Ne3 {[%emt 0:00:00]} 12. Rc1 {[%emt 0:00:25]} Nxg2+ {[%emt 0:00:00]} 13. Kf2 {[%emt 0:00:08]} Ne3 {[%emt 0:00:00]} 14. Rce1 {[%emt 0:00:19]} Nxc2 {[%emt 0:00:00]} 15. Rc1 {[%emt 0:00:09]} Qe3+ {[%emt 0:00:00]} 16. Qxe3+ {[%emt 0:00:05]} Nxe3 {[%emt 0:00:00]} 17. Bb5 {[%emt 0:00:08]} Bd7 {[%emt 0:00:00]} 18. Rhe1 {[%emt 0:00:06]} O-O-O {[%emt 0:00:00]} 19. Bd2 {[%emt 0:00:07]} Nd5 {[%emt 0:00:00]} 20. Bxf4 {[%emt 0:00:13]} Nxf4 {[%emt 0:00:00]} 21. Ng5 {[%emt 0:00:12]} Nxh3+ {[%emt 0:00:00]} 22. Nxh3 {[%emt 0:00:05]} Bxh3 {[%emt 0:00:00]} 23. Bxc6 {[%emt 0:00:03]} bxc6 {[%emt 0:00:00]} 24. Rxc6 {[%emt 0:00:36]} Rhe8 {[%emt 0:00:00]} 25. Rec1 {[%emt 0:00:00]} Re7 {[%emt 0:00:00]} 26. Rh1 {[%emt 0:00:00]} Bf5 {[%emt 0:00:00]} 27. Rc5 {[%emt 0:00:00]} Bg6 {[%emt 0:00:00]} 28. Rhc1 {[%emt 0:00:00]} Rxd4 {[%emt 0:00:00]} 29. a3 {[%emt 0:00:00]} Rd2+ {[%emt 0:00:00]} 30. Kf3 {[%emt 0:00:06]} Rxb2 {[%emt 0:00:00]} 31. a4 {[%emt 0:00:03]} Rb3+ {[%emt 0:00:03]} 32. Kf2 {[%emt 0:00:04]} Rbe3 {[%emt 0:00:10]} 33. Ra5 {[%emt 0:00:08]} Re2+ {[%emt 0:00:03]} 34. Kf3 {[%emt 0:00:03]} Bh5+ {[%emt 0:00:04]} 35. Kf4 {[%emt 0:00:03]} g5+ {[%emt 0:00:08]} 36. Kxg5 {[%emt 0:00:03]} R7e5+ {[%emt 0:00:02]} 37. Rxe5 {[%emt 0:00:03]} Rxe5+ {[%emt 0:00:03]} 38. Kf6 {[%emt 0:00:03]} Ra5 {[%emt 0:00:03]} 39. Rc4 {[%emt 0:00:05]} Bg6 {[%emt 0:00:04]} 40. Rh4 {[%emt 0:00:03]} Rf5+ {[%emt 0:00:02]} 41. Kg7 {[%emt 0:00:03]} Kd7 {[%emt 0:00:03]} 42. Kf8 {[%emt 0:00:03]} Re5 {[%emt 0:00:04]} 43. a5 {[%emt 0:00:02]} Re8+ {[%emt 0:00:05]} 44. Kg7 {[%emt 0:00:02]} Ke7 {[%emt 0:00:01]} 45. Re4+ {[%emt 0:00:03]} Bxe4 {[%emt 0:00:03]} 0-1

[Event "Djerba Festival Blitz 2025"]
[Site "Djerba"]
[Date "2025.02.21"]
[Round "7.31"]
[White "Ben Mbarek, Mohamed"]
[Black "Sazlik, Mucahit"]
[Result "0-1"]
[ECO "D02"]
[WhiteElo "1570"]
[BlackElo "1672"]
[PlyCount "47"]
[EventDate "2025.02.15"]
[EventType "swiss"]
[EventCountry "TUN"]
[TimeControl "180+3"]

1. Nf3 {[%emt 0:00:04]} d5 {[%emt 0:00:03]} 2. d4 {[%emt 0:00:03]} Nf6 {[%emt 0:00:05]} 3. g3 {[%emt 0:00:02]} Bf5 {[%emt 0:00:08]} 4. Bg2 {[%emt 0:00:04]} e6 {[%emt 0:00:03]} 5. O-O {[%emt 0:00:05]} h6 {[%emt 0:00:03]} 6. Nc3 {[%emt 0:00:04]} c6 {[%emt 0:00:10]} 7. Re1 {[%emt 0:00:13]} Bb4 {[%emt 0:00:05]} 8. Bd2 {[%emt 0:00:07]} O-O {[%emt 0:00:05]} 9. Nh4 {[%emt 0:00:08]} Bh7 {[%emt 0:00:03]} 10. e4 {[%emt 0:00:25]} Bxc3 {[%emt 0:00:08]} 11. Bxc3 {[%emt 0:00:07]} Nxe4 {[%emt 0:00:06]} 12. Bb4 {[%emt 0:00:11]} Re8 {[%emt 0:00:07]} 13. Rc1 {[%emt 0:00:11]} Na6 {[%emt 0:00:20]} 14. Ba3 {[%emt 0:00:16]} Nc7 {[%emt 0:00:08]} 15. c4 {[%emt 0:00:06]} Qf6 {[%emt 0:00:15]} 16. Bxe4 {[%emt 0:00:27]} Bxe4 {[%emt 0:00:04]} 17. cxd5 {[%emt 0:00:04]} exd5 {[%emt 0:00:11]} 18. b3 {[%emt 0:00:26]} Ne6 {[%emt 0:00:17]} 19. Bb2 {[%emt 0:00:07]} Ng5 {[%emt 0:00:04]} 20. Rxe4 {[%emt 0:00:27]} Nxe4 {[%emt 0:00:04]} 21. Nf3 {[%emt 0:00:08]} Re6 {[%emt 0:00:12]} 22. Rc2 {[%emt 0:00:07]} Rae8 {[%emt 0:00:04]} 23. Bc1 {[%emt 0:00:15]} Ng5 {[%emt 0:00:20]} 24. Ne5 {[%emt 0:00:00]} 0-1